bitfinex/quotes_BTCUSD_20230907
["timestamp","ask_amount","ask_price","bid_price","bid_amount"]
[1694100836393,0.12,25791.0,25790.0,2.78429568]
[1694100836818,0.12,25791.0,25790.0,2.75929568]
[1694100837228,0.1,25791.0,25790.0,2.78429568]
[1694100837899,0.12,25791.0,25790.0,2.78429568]
[1694100838101,0.12,25791.0,25790.0,2.80929568]
[1694100838306,0.12,25791.0,25790.0,2.78429568]
[1694100838527,0.1,25791.0,25790.0,2.80929568]
[1694100838997,0.1198,25795.0,25792.0,0.44635]
[1694100839228,0.1198,25795.0,25794.0,0.15935]
[1694100839456,0.1198,25795.0,25794.0,2.785472]
[1694100840813,0.1198,25795.0,25794.0,2.810472]
[1694100845590,0.1198,25795.0,25794.0,2.810472]
[1694100845798,0.1198,25795.0,25794.0,2.82281498]
[1694100846009,0.1198,25795.0,25794.0,2.84781498]
[1694100850688,0.1198,25795.0,25794.0,2.87812468]
[1694100860580,0.0198,25795.0,25794.0,2.87812468]
[1694100860832,0.1198,25795.0,25794.0,2.87812468]
[1694100861049,0.2813,25795.0,25794.0,2.87812468]
[1694100864387,0.2013,25795.0,25794.0,2.87812468]
[1694100864608,0.2813,25795.0,25794.0,2.87812468]
[1694100865284,0.2813,25795.0,25794.0,1.98215068]
[1694100865500,0.2813,25795.0,25794.0,2.10275068]
[1694100866236,0.2813,25795.0,25794.0,2.88236158]
[1694100872678,0.55460595,25795.0,25794.0,0.40532988]
[1694100873114,0.55460595,25795.0,25794.0,0.36657988]
[1694100873577,0.55460595,25795.0,25794.0,0.34157988]
[1694100873850,0.3013,25795.0,25794.0,2.69270188]
[1694100874311,0.3013,25795.0,25794.0,2.66770188]
[1694100874553,0.3013,25795.0,25794.0,2.69270188]
[1694100875230,0.3013,25795.0,25794.0,2.66770188]
[1694100876616,0.3013,25795.0,25794.0,2.69270188]
[1694100877292,0.3013,25795.0,25794.0,2.81330188]
[1694100877735,0.3013,25795.0,25794.0,2.78830188]
[1694100879109,0.0398,25795.0,25794.0,2.81330188]
[1694100879341,0.1198,25795.0,25794.0,3.58867588]
[1694100880018,0.0198,25795.0,25794.0,3.58867588]
[1694100880283,0.0198,25795.0,25794.0,3.62742588]
[1694100880721,0.0398,25795.0,25794.0,3.72001777]
[1694100881166,0.0398,25795.0,25794.0,3.62742588]
[1694100881394,0.0398,25795.0,25794.0,3.60242588]
[1694100881616,0.0398,25795.0,25794.0,3.57742588]
[1694100882327,0.0398,25795.0,25794.0,3.60242588]
[1694100883240,0.0398,25795.0,25794.0,3.57742588]
[1694100883687,0.0398,25795.0,25794.0,3.60242588]
[1694100883921,0.0398,25795.0,25794.0,3.69501777]
[1694100884790,0.0398,25795.0,25794.0,3.72001777]
[1694100885007,0.0398,25795.0,25794.0,3.62742588]
[1694100885225,0.0398,25795.0,25794.0,3.72001777]
[1694100885662,0.0398,25795.0,25794.0,3.70680845]
[1694100885880,0.0398,25795.0,25794.0,3.63921656]
[1694100886545,0.0398,25795.0,25794.0,3.73180845]
[1694100888650,0.1198,25795.0,25794.0,3.73180845]
[1694100889247,0.1198,25795.0,25794.0,3.63921656]
[1694100889676,0.1198,25795.0,25794.0,3.73180845]
[1694100889851,0.1198,25795.0,25794.0,3.63921656]
[1694100890287,0.1198,25795.0,25794.0,3.73180845]
[1694100890702,0.1198,25795.0,25794.0,3.63921656]
[1694100894617,0.0198,25795.0,25794.0,5.05997456]
[1694100894834,0.0198,25795.0,25794.0,5.05995867]
[1694100896347,0.0198,25795.0,25794.0,5.24514245]
[1694100896602,0.0198,25795.0,25794.0,5.05995867]
[1694100897266,0.0198,25795.0,25794.0,5.03495867]
[1694100897912,0.0198,25795.0,25794.0,5.05995867]
[1694100898156,0.0198,25795.0,25794.0,5.15251464]
[1694100898364,0.0198,25795.0,25794.0,4.78739769]
[1694100899043,0.0198,25795.0,25794.0,4.64852575]
[1694100899263,0.0198,25795.0,25794.0,4.52792575]
[1694100900178,0.0198,25795.0,25794.0,5.22792575]
[1694100900629,0.0198,25795.0,25794.0,5.20292575]
[1694100900833,0.0198,25795.0,25794.0,5.22792575]
[1694100901065,0.0198,25795.0,25794.0,5.22791608]
[1694100901253,0.0198,25795.0,25794.0,5.17791608]
[1694100901493,0.0198,25795.0,25794.0,5.20291608]
[1694100901967,0.0198,25795.0,25794.0,5.46233554]
[1694100902223,0.0198,25795.0,25794.0,5.48733554]
[1694100902442,0.0198,25795.0,25794.0,5.77885277]
[1694100904480,0.0198,25795.0,25794.0,5.75385277]
[1694100904700,0.0198,25795.0,25794.0,5.77885277]
[1694100904923,0.0198,25795.0,25794.0,5.36221952]
[1694100905145,0.1709,25795.0,25794.0,4.83933653]
[1694100907695,0.9858,25801.0,25796.0,0.44635]
[1694100907940,0.008385,25804.0,25799.0,0.44635]
[1694100908183,0.0198,25805.0,25799.0,0.44635]
[1694100908184,0.1936,25805.0,25803.0,0.76975207]
[1694100908472,0.0398,25805.0,25804.0,2.77745032]
[1694100908707,0.0198,25805.0,25804.0,5.10266932]
[1694100908938,0.0198,25805.0,25804.0,8.24127021]
[1694100909159,0.0198,25805.0,25804.0,9.10266932]
[1694100909387,0.0398,25805.0,25804.0,9.01026822]
[1694100909618,0.1901,25805.0,25804.0,6.95146822]
[1694100910103,0.1901,25805.0,25804.0,6.97646822]
[1694100910331,0.1901,25805.0,25804.0,7.13151122]
[1694100910570,0.2701,25805.0,25804.0,6.214758]
[1694100910797,0.2701,25805.0,25804.0,5.059715]
[1694100911233,0.26963529,25805.0,25804.0,5.059715]
[1694100911701,0.26963529,25805.0,25804.0,6.97646822]
[1694100911932,0.26963529,25805.0,25804.0,7.13152622]
[1694100913337,0.26963529,25805.0,25804.0,7.15652622]
[1694100913564,0.26963529,25805.0,25804.0,8.15652622]
[1694100915176,0.26963529,25805.0,25804.0,7.74892622]
[1694100915365,0.26963529,25805.0,25804.0,4.309642]
[1694100916460,0.26963529,25805.0,25804.0,4.430242]
[1694100916690,0.26963529,25805.0,25804.0,6.430242]
[1694100917563,0.26963529,25805.0,25804.0,5.430242]
[1694100917816,0.26963529,25805.0,25804.0,4.430242]
[1694100918075,0.26963529,25805.0,25804.0,4.309642]
[1694100918319,0.26963529,25805.0,25804.0,4.34073142]
[1694100919015,0.26963529,25805.0,25804.0,4.35261102]
[1694100932575,0.01933529,25805.0,25804.0,5.14876424]
[1694100932838,0.11933529,25805.0,25804.0,6.82442031]
[1694100936660,0.11933529,25805.0,25804.0,6.02826709]
[1694100940491,0.11933529,25805.0,25804.0,6.82442031]
[1694100947055,0.11933529,25805.0,25804.0,6.77442031]
[1694100947485,0.11933529,25805.0,25804.0,6.89502031]
[1694100948333,0.11933529,25805.0,25804.0,6.92002031]
[1694100948761,0.11933529,25805.0,25804.0,6.94502031]
[1694100950033,0.11933529,25805.0,25804.0,6.53742031]
[1694100950266,0.11933529,25805.0,25804.0,6.41682031]
[1694100950488,0.11933529,25805.0,25804.0,6.02826709]
[1694100950734,0.11933529,25805.0,25804.0,4.35261102]
[1694100950967,0.11933529,25805.0,25804.0,6.02826709]
[1694100951655,0.11933529,25805.0,25804.0,4.35261102]
[1694100952165,0.11933529,25805.0,25804.0,4.44467889]
[1694100952394,0.11933529,25805.0,25804.0,3.74467889]
[1694100952672,0.11933529,25805.0,25804.0,5.42033496]
[1694100952919,0.11933529,25805.0,25804.0,3.65261102]
[1694100953154,0.11933529,25805.0,25804.0,4.18170208]
[1694100955299,0.11933529,25805.0,25804.0,4.9778553]
[1694100955999,0.11933529,25805.0,25804.0,5.6778553]
[1694100957657,0.11933529,25805.0,25804.0,5.7984553]
[1694100958945,0.11933529,25805.0,25804.0,5.89104664]
[1694100959144,0.11933529,25805.0,25804.0,5.77044664]
[1694100959594,0.11933529,25805.0,25804.0,5.36284664]
[1694100960035,0.11933529,25805.0,25804.0,4.97185739]
[1694100960783,0.11933529,25805.0,25804.0,5.36230845]
[1694100961995,0.11933529,25805.0,25804.0,4.97185739]
[1694100963306,0.11933529,25805.0,25804.0,4.83375558]
[1694100981597,0.11933529,25805.0,25804.0,4.35261102]
[1694100982021,0.14770523,25805.0,25804.0,4.35261102]
[1694100983515,0.14770523,25805.0,25804.0,4.32761102]
[1694100983740,0.14770523,25805.0,25804.0,4.30261102]
[1694100983979,0.14770523,25805.0,25804.0,4.35261102]
[1694100984396,0.14770523,25805.0,25804.0,4.32761102]
[1694100984831,0.14770523,25805.0,25804.0,4.35261102]
[1694100987602,0.11933529,25805.0,25804.0,4.35261102]
[1694100988208,0.11933529,25805.0,25804.0,3.65261102]
[1694100990139,0.1843,25806.0,25804.0,4.04116424]
[1694100990365,0.1843,25806.0,25805.0,0.15935]
[1694100990593,0.02,25806.0,25805.0,3.17303222]
[1694100991059,0.02,25806.0,25805.0,3.67322356]
[1694100991711,0.02,25806.0,25805.0,4.37322356]
[1694100992157,0.02,25806.0,25805.0,4.39822356]
[1694100993646,0.02,25806.0,25805.0,4.42322356]
[1694100996031,0.02,25806.0,25805.0,3.534479]
[1694101003047,0.02,25806.0,25805.0,3.62707034]
[1694101005534,0.02,25806.0,25805.0,3.534479]
[1694101005722,0.02,25806.0,25805.0,3.6270179]
[1694101013217,0.02,25806.0,25805.0,3.534479]
[1694101013922,0.02,25806.0,25805.0,4.65159208]
[1694101014146,0.02,25806.0,25805.0,4.74413098]
[1694101015664,0.02,25806.0,25805.0,5.27063363]
[1694101015830,0.02,25806.0,25805.0,4.88293934]
[1694101016672,0.02,25806.0,25805.0,5.17828903]
[1694101016846,0.02,25806.0,25805.0,4.88291408]
[1694101017987,0.02,25806.0,25805.0,5.79609057]
[1694101018200,0.02,25806.0,25805.0,5.17263893]
[1694101019036,0.02,25806.0,25805.0,4.88290628]
[1694101019735,0.02,25806.0,25805.0,4.74409792]
[1694101020697,0.02,25806.0,25805.0,8.74409792]
[1694101023380,0.02,25806.0,25805.0,4.74409792]
[1694101024944,0.02,25806.0,25805.0,6.74409792]
[1694101025163,0.02,25806.0,25805.0,5.74409792]
[1694101025868,0.02,25806.0,25805.0,6.74409792]
[1694101027408,0.02,25806.0,25805.0,5.74409792]
[1694101027617,0.02,25806.0,25805.0,6.74409792]
[1694101032221,0.02,25806.0,25805.0,7.74409792]
[1694101032629,0.02,25806.0,25805.0,7.88290628]
[1694101033045,0.02,25806.0,25805.0,7.74409792]
[1694101033709,0.02,25806.0,25805.0,7.65159208]
[1694101038835,0.02,25806.0,25805.0,6.95159208]
[1694101040274,0.02,25806.0,25805.0,3.95159208]
[1694101040963,0.03887483,25806.0,25805.0,3.95159208]
[1694101042703,0.64284934,25806.0,25805.0,3.65159208]
[1694101042932,0.64284934,25806.0,25805.0,1.16711308]
[1694101042933,1.29819985,25806.0,25805.0,1.16711308]
[1694101043158,1.29819985,25806.0,25805.0,0.05]
[1694101043159,3.00292718,25806.0,25805.0,0.05]
[1694101043380,4.35400524,25806.0,25805.0,0.05]
[1694101043602,4.31464524,25806.0,25805.0,0.05]
[1694101043823,4.2500519,25806.0,25805.0,0.05]
[1694101044047,1.97748947,25806.0,25805.0,0.05]
[1694101044264,1.81590947,25806.0,25805.0,0.025]
[1694101044501,1.81596947,25806.0,25805.0,0.025]
[1694101044778,1.81518947,25806.0,25805.0,0.025]
[1694101045004,0.18,25803.0,25802.0,2.325358]
[1694101045239,0.56855322,25803.0,25802.0,3.44274688]
[1694101045459,0.56855322,25803.0,25802.0,2.325358]
[1694101045681,0.56855322,25803.0,25802.0,1.550238]
[1694101045895,0.73475322,25803.0,25802.0,1.550238]
[1694101046961,0.80033322,25803.0,25802.0,1.550238]
[1694101047164,0.80081322,25803.0,25802.0,1.550238]
[1694101047389,0.80105322,25803.0,25802.0,1.550238]
[1694101047598,0.80129322,25803.0,25802.0,1.575238]
[1694101047768,0.80297322,25803.0,25802.0,1.575238]
[1694101047975,0.80579322,25803.0,25802.0,1.575238]
[1694101048180,0.80609322,25803.0,25802.0,1.575238]
[1694101048425,1.03228464,25803.0,25802.0,1.575238]
[1694101048642,1.03480464,25803.0,25802.0,1.575238]
[1694101048858,0.96274464,25803.0,25802.0,1.575238]
[1694101049058,0.96274464,25803.0,25802.0,0.025]
[1694101049059,1.05190464,25803.0,25802.0,0.025]
[1694101049266,1.07770464,25803.0,25802.0,0.025]
[1694101049479,1.08208464,25803.0,25802.0,0.025]
[1694101049683,1.08142464,25803.0,25802.0,0.025]
[1694101049893,1.07344464,25803.0,25802.0,0.025]
[1694101050093,1.07488464,25803.0,25802.0,0.025]
[1694101050305,1.07614464,25803.0,25802.0,0.025]
[1694101050514,1.07530464,25803.0,25802.0,0.025]
[1694101050718,1.06888464,25803.0,25802.0,0.025]
[1694101050926,1.06678464,25803.0,25802.0,0.025]
[1694101051161,1.07116464,25803.0,25802.0,0.025]
[1694101051373,1.07266464,25803.0,25802.0,0.025]
[1694101051589,1.07056464,25803.0,25802.0,0.025]
[1694101051790,1.07086464,25803.0,25802.0,0.025]
[1694101051993,1.07068464,25803.0,25802.0,0.025]
[1694101052203,2.62677064,25803.0,25802.0,0.025]
[1694101052457,2.62509064,25803.0,25802.0,0.025]
[1694101052660,2.62809064,25803.0,25802.0,0.025]
[1694101052885,2.63289064,25803.0,25802.0,0.025]
[1694101053098,2.77647064,25803.0,25802.0,0.025]
[1694101053303,3.46638222,25803.0,25802.0,0.025]
[1694101053521,3.49110222,25803.0,25802.0,0.025]
[1694101053740,3.49902222,25803.0,25802.0,0.025]
[1694101053951,3.48522222,25803.0,25802.0,0.025]
[1694101054168,3.48834222,25803.0,25802.0,0.025]
[1694101054388,3.48210222,25803.0,25802.0,0.025]
[1694101054654,4.00387693,25803.0,25802.0,0.025]
[1694101054878,4.07979693,25803.0,25802.0,0.025]
[1694101055121,4.09167693,25803.0,25802.0,0.025]
[1694101055333,4.08867693,25803.0,25802.0,0.025]
[1694101055551,4.08831693,25803.0,25802.0,0.025]
[1694101055768,4.08807693,25803.0,25802.0,0.025]
[1694101055973,4.1060943,25803.0,25802.0,0.025]
[1694101056224,4.1086143,25803.0,25802.0,0.025]
[1694101056442,3.98595959,25803.0,25802.0,0.025]
[1694101056653,3.94491959,25803.0,25802.0,0.025]
[1694101056867,3.94827959,25803.0,25802.0,0.025]
[1694101057077,3.94887959,25803.0,25802.0,0.025]
[1694101057297,3.95619959,25803.0,25802.0,0.025]
[1694101057505,3.95631959,25803.0,25802.0,0.025]
[1694101057710,3.95943959,25803.0,25802.0,0.025]
[1694101057923,0.1,25798.0,25797.0,0.775278]
[1694101058136,0.48855322,25798.0,25797.0,1.89279314]
[1694101058364,0.70125322,25798.0,25797.0,1.89279314]
[1694101058581,0.16,25798.0,25797.0,2.66807614]
[1694101058857,0.16,25798.0,25797.0,3.44335914]
[1694101059100,0.16,25798.0,25797.0,2.66807614]
[1694101059785,0.162,25798.0,25797.0,1.94279314]
[1694101060205,0.162,25798.0,25797.0,1.16751514]
[1694101061291,0.55055322,25798.0,25797.0,1.16751514]
[1694101061485,0.77789322,25798.0,25797.0,1.16751514]
[1694101061691,0.77717322,25798.0,25797.0,1.16751514]
[1694101061892,0.77657322,25798.0,25797.0,1.16751514]
[1694101062101,0.77747322,25798.0,25797.0,1.16751514]
[1694101062308,0.77693322,25798.0,25797.0,1.16751514]
[1694101062514,0.78437322,25798.0,25797.0,1.16751514]
[1694101062730,0.78635322,25798.0,25797.0,1.16751514]
[1694101062931,0.78395322,25798.0,25797.0,1.16751514]
[1694101063136,0.78497322,25798.0,25797.0,1.16751514]
[1694101063343,0.79079322,25798.0,25797.0,1.16751514]
[1694101063562,0.79475322,25798.0,25797.0,1.16751514]
[1694101063786,0.78941322,25798.0,25797.0,1.16751514]
[1694101063996,0.78737322,25798.0,25797.0,1.16751514]
[1694101064206,0.78725322,25798.0,25797.0,1.16751514]
[1694101064417,0.78671322,25798.0,25797.0,1.16751514]
[1694101064621,0.78659322,25798.0,25797.0,1.16751514]
[1694101064845,0.79025322,25798.0,25797.0,1.16751514]
[1694101065074,0.79121322,25798.0,25797.0,1.16751514]
[1694101065262,0.79079322,25798.0,25797.0,1.16751514]
[1694101065470,0.79037322,25798.0,25797.0,1.16751514]
[1694101065680,0.79067322,25798.0,25797.0,1.16751514]
[1694101065900,0.78869322,25798.0,25797.0,1.16751514]
[1694101066099,0.78899322,25798.0,25797.0,1.16751514]
[1694101066295,0.78941322,25798.0,25797.0,1.16751514]
[1694101066511,0.80123322,25798.0,25797.0,1.16751514]
[1694101066722,0.80033322,25798.0,25797.0,1.16751514]
[1694101066940,0.80375322,25798.0,25797.0,1.16751514]
[1694101067179,0.80369322,25798.0,25797.0,1.16751514]
[1694101067355,0.80915322,25798.0,25797.0,1.16751514]
[1694101067572,0.80465322,25798.0,25797.0,1.16751514]
[1694101067780,0.80585322,25798.0,25797.0,1.16751514]
[1694101067999,0.80471322,25798.0,25797.0,1.16751514]
[1694101068212,0.80429322,25798.0,25797.0,1.16751514]
[1694101068424,1.05230699,25798.0,25797.0,1.16751514]
[1694101068650,1.04936699,25798.0,25797.0,1.16751514]
[1694101068865,1.04930699,25798.0,25797.0,1.16751514]
[1694101069073,1.04966699,25798.0,25797.0,1.16751514]
[1694101069284,1.04972699,25798.0,25797.0,1.16751514]
[1694101069503,1.06532699,25798.0,25797.0,1.16751514]
[1694101069703,1.06520699,25798.0,25797.0,1.16751514]
[1694101069924,1.06508699,25798.0,25797.0,1.16751514]
[1694101070124,1.06526699,25798.0,25797.0,1.16751514]
[1694101070346,3.85825222,25798.0,25797.0,1.16751514]
[1694101070568,4.08429444,25798.0,25797.0,1.16751514]
[1694101070789,4.07033757,25798.0,25797.0,1.16751514]
[1694101071016,4.06973757,25798.0,25797.0,1.16751514]
[1694101071258,4.22500257,25798.0,25797.0,1.16751514]
[1694101071501,4.22532257,25798.0,25797.0,1.14251514]
[1694101071735,4.62453549,25798.0,25797.0,1.14251514]
[1694101071952,4.20726257,25798.0,25797.0,1.14251514]
[1694101072163,4.19670257,25798.0,25797.0,1.11751514]
[1694101072383,0.02,25794.0,25793.0,0.03875]
[1694101072594,0.02,25794.0,25793.0,1.15644751]
[1694101072595,0.40855322,25794.0,25793.0,1.15644751]
[1694101072807,0.55575322,25794.0,25793.0,1.15644751]
[1694101073018,0.55521322,25794.0,25793.0,1.15644751]
[1694101073348,0.55605322,25794.0,25793.0,1.15644751]
[1694101073558,0.55581322,25794.0,25793.0,1.15644751]
[1694101073753,0.55605322,25794.0,25793.0,1.15644751]
[1694101073961,0.55611322,25794.0,25793.0,1.15644751]
[1694101074189,0.55711322,25794.0,25793.0,1.18144751]
[1694101074392,0.55693322,25794.0,25793.0,1.18144751]
[1694101074594,0.55699322,25794.0,25793.0,1.18144751]
[1694101074952,0.48955322,25794.0,25793.0,1.18144751]
[1694101075136,0.55477322,25794.0,25793.0,1.18144751]
[1694101075392,0.55687322,25794.0,25793.0,1.18144751]
[1694101075644,0.55769322,25794.0,25793.0,1.20644751]
[1694101075889,0.57179322,25794.0,25793.0,1.20644751]
[1694101076118,3.12510836,25794.0,25793.0,1.20644751]
[1694101076349,3.12510836,25794.0,25793.0,1.16769751]
[1694101076350,4.17323965,25794.0,25793.0,1.16769751]
[1694101076572,4.17323965,25794.0,25793.0,0.05]
[1694101076573,4.07640236,25794.0,25793.0,0.05]
[1694101076795,4.08624236,25794.0,25793.0,0.05]
[1694101077022,4.08576236,25794.0,25793.0,0.05]
[1694101077246,3.88347522,25794.0,25793.0,0.05]
[1694101077473,4.07413309,25794.0,25793.0,0.05]
[1694101077698,3.77863309,25794.0,25793.0,0.05]
[1694101077919,3.77719309,25794.0,25793.0,0.05]
[1694101078107,3.77577309,25794.0,25793.0,0.025]
[1694101078365,3.77511309,25794.0,25793.0,0.025]
[1694101078579,0.02,25788.0,25787.0,1.44508263]
[1694101078796,0.17542129,25788.0,25787.0,3.31625029]
[1694101079014,0.02,25788.0,25787.0,3.10955029]
[1694101079688,0.02,25788.0,25787.0,3.88513429]
[1694101081865,0.021,25788.0,25787.0,3.91013429]
[1694101082080,0.022,25788.0,25787.0,3.93513429]
[1694101085623,0.022,25788.0,25787.0,3.93513429]
[1694101085849,0.04028175,25788.0,25787.0,3.93513429]
[1694101086950,0.04028175,25788.0,25787.0,3.97388429]
[1694101088531,0.03928175,25788.0,25787.0,3.94888429]
[1694101089348,0.03828175,25788.0,25787.0,3.94888429]
[1694101090442,0.03828175,25788.0,25787.0,3.92388429]
[1694101092032,0.01828175,25788.0,25787.0,3.96267426]
[1694101092270,0.01828175,25788.0,25787.0,4.1757801]
[1694101092496,0.02,25789.0,25787.0,4.1757801]
[1694101092711,0.02,25789.0,25788.0,1.59713229]
[1694101092956,0.02,25789.0,25788.0,3.92379429]
[1694101094943,0.02,25789.0,25788.0,3.94879429]
[1694101095165,0.02,25789.0,25788.0,3.97379429]
[1694101095382,0.02,25789.0,25788.0,3.94879429]
[1694101095603,0.02,25789.0,25788.0,3.97379429]
[1694101095826,0.02,25789.0,25788.0,4.04130013]
[1694101096045,0.02,25789.0,25788.0,4.06630013]
[1694101096272,0.02,25791.0,25789.0,0.02]
[1694101096494,0.02,25791.0,25790.0,5.13585229]
[1694101096726,0.02,25791.0,25790.0,5.43585229]
[1694101096965,0.02,25792.0,25790.0,5.43585229]
[1694101097181,0.02,25792.0,25791.0,1.55838229]
[1694101097435,0.02,25792.0,25791.0,3.88477429]
[1694101098100,0.02,25792.0,25791.0,4.58477429]
[1694101098325,0.02,25793.0,25792.0,0.1406]
[1694101098564,0.02,25793.0,25792.0,4.66011829]
[1694101098790,0.02,25793.0,25792.0,4.78071829]
[1694101099709,0.02,25793.0,25792.0,4.80571829]
[1694101101066,0.02,25793.0,25792.0,4.83071829]
[1694101108981,0.02,25793.0,25792.0,4.80571829]
[1694101109651,0.02,25793.0,25792.0,4.78071829]
[1694101109844,0.02,25793.0,25792.0,4.80571829]
[1694101110078,0.02,25794.0,25793.0,0.02]
[1694101110339,0.02,25794.0,25793.0,3.88459429]
[1694101110568,0.1802,25795.0,25794.0,0.02]
[1694101110795,0.1802,25795.0,25794.0,3.58450429]
[1694101111014,0.1802,25795.0,25794.0,3.88450429]
[1694101113306,0.1802,25795.0,25794.0,3.90950429]
[1694101114322,0.1802,25795.0,25794.0,3.93450429]
[1694101114556,0.19660531,25795.0,25794.0,3.90950429]
[1694101114808,0.19660531,25795.0,25794.0,3.93450429]
[1694101115937,0.1802,25795.0,25794.0,3.90950429]
[1694101116166,0.1802,25795.0,25794.0,3.93450429]
[1694101116388,0.19664148,25795.0,25794.0,3.93450429]
[1694101117103,0.1802,25795.0,25794.0,3.93450429]
[1694101117319,0.19664148,25795.0,25794.0,3.93450429]
[1694101118232,0.19664148,25795.0,25794.0,3.93440648]
[1694101119104,0.19652645,25795.0,25794.0,3.93440648]
[1694101125722,0.18008497,25795.0,25794.0,3.93440648]
[1694101126158,0.19589641,25795.0,25794.0,3.93440648]
[1694101136113,0.19578879,25795.0,25794.0,3.93440648]
[1694101144012,0.19578879,25795.0,25794.0,3.03843248]
[1694101144515,0.62434201,25795.0,25794.0,1.18757944]
[1694101144733,0.71194201,25795.0,25794.0,0.05]
[1694101144960,0.71800201,25795.0,25794.0,0.05]
[1694101145189,0.71548201,25795.0,25794.0,0.05]
[1694101145416,0.71614201,25795.0,25794.0,0.05]
[1694101145634,0.71572201,25795.0,25794.0,0.05]
[1694101145841,0.70702201,25795.0,25794.0,0.05]
[1694101146053,0.70702201,25795.0,25794.0,0.025]
[1694101146054,0.70618201,25795.0,25794.0,0.025]
[1694101146256,0.69148201,25795.0,25794.0,0.025]
[1694101146475,0.69208201,25795.0,25794.0,0.05]
[1694101146701,0.69202201,25795.0,25794.0,0.05]
[1694101146947,0.62434201,25795.0,25794.0,0.920974]
[1694101147580,0.62434201,25795.0,25794.0,0.96587619]
[1694101147736,0.62434201,25795.0,25794.0,0.94087619]
[1694101148073,0.62434201,25795.0,25794.0,0.96587619]
[1694101150629,0.62434201,25795.0,25794.0,1.74125019]
[1694101151258,0.23578879,25795.0,25794.0,2.51662419]
[1694101151471,0.23578879,25795.0,25794.0,3.63424321]
[1694101153419,0.23578879,25795.0,25794.0,3.60924321]
[1694101153668,0.23578879,25795.0,25794.0,3.63424321]
[1694101159257,0.23578879,25795.0,25794.0,3.60924321]
[1694101159258,0.07581144,25795.0,25794.0,3.60924321]
[1694101159460,0.07581144,25795.0,25794.0,2.49162419]
[1694101159667,0.03581144,25795.0,25794.0,3.63422413]
[1694101160276,0.03581144,25795.0,25794.0,3.60922413]
[1694101160776,0.63978595,25795.0,25794.0,3.58932194]
[1694101161012,4.15495909,25795.0,25794.0,0.025]
[1694101161234,4.80316384,25795.0,25794.0,0.05]
[1694101161454,4.41618123,25795.0,25794.0,0.05]
[1694101161678,4.4762455,25795.0,25794.0,0.05]
[1694101161891,4.47632591,25795.0,25794.0,0.05]
[1694101162110,4.45496591,25795.0,25794.0,0.05]
[1694101162332,4.46336591,25795.0,25794.0,0.05]
[1694101162551,4.61723391,25795.0,25794.0,0.025]
[1694101162763,4.60835391,25795.0,25794.0,0.05]
[1694101162980,4.60835391,25795.0,25794.0,0.025]
[1694101162981,4.60679391,25795.0,25794.0,0.025]
[1694101163201,0.08,25790.0,25788.0,0.05865219]
[1694101163469,0.44855322,25789.0,25788.0,0.03875]
[1694101163888,2.5006412,25789.0,25788.0,0.03875]
[1694101164114,3.43562391,25789.0,25788.0,0.03875]
[1694101164327,3.43562391,25789.0,25785.0,0.05865219]
[1694101164328,0.06,25786.0,25785.0,0.05865219]
[1694101164537,0.44855322,25786.0,25785.0,0.05865219]
[1694101164730,0.44855322,25786.0,25785.0,1.17666419]
[1694101165352,0.44855322,25786.0,25785.0,0.05865219]
[1694101165610,0.44855322,25786.0,25785.0,1.17663515]
[1694101165611,0.61025322,25786.0,25785.0,1.17663515]
[1694101166654,0.61025322,25786.0,25785.0,1.20163515]
[1694101166893,0.59025322,25786.0,25785.0,1.20163515]
[1694101167115,0.61025322,25786.0,25785.0,1.20163515]
[1694101168040,0.61025322,25786.0,25785.0,1.16288515]
[1694101170536,0.61025322,25786.0,25785.0,1.193629]
[1694101172275,0.61025322,25786.0,25785.0,1.16288515]
[1694101173081,0.61025322,25786.0,25785.0,0.04490219]
[1694101173343,0.61025322,25786.0,25785.0,1.16288073]
[1694101174960,0.06,25786.0,25785.0,2.83476873]
[1694101175170,0.06,25786.0,25785.0,3.64916273]
[1694101175394,0.06,25786.0,25785.0,3.61041273]
[1694101175616,0.06,25786.0,25785.0,3.63541273]
[1694101175827,0.07574649,25786.0,25785.0,3.63541273]
[1694101180193,0.07574649,25786.0,25785.0,2.89014662]
[1694101185020,0.07574649,25786.0,25785.0,2.88514662]
[1694101194448,0.07574649,25786.0,25785.0,2.76454662]
[1694101194670,0.07574649,25786.0,25785.0,2.88514662]
[1694101195326,0.07574649,25786.0,25785.0,2.92389662]
[1694101202463,0.07574649,25786.0,25785.0,2.92348262]
[1694101217894,0.07574649,25786.0,25785.0,2.91848262]
[1694101224858,0.07574649,25786.0,25785.0,2.86848262]
[1694101230832,0.03574649,25786.0,25785.0,3.64412662]
[1694101231059,0.03574649,25786.0,25785.0,3.94412662]
[1694101232701,0.04054104,25786.0,25785.0,2.84165989]
[1694101237051,0.64451555,25786.0,25785.0,2.54165989]
[1694101237327,0.64451555,25786.0,25785.0,0.025]
[1694101237328,4.2420078,25786.0,25785.0,0.025]
[1694101237542,4.56544753,25786.0,25785.0,0.025]
[1694101237763,0.06,25780.0,25779.0,0.019998]
[1694101237979,2.17556451,25780.0,25779.0,0.019998]
[1694101238410,2.26220322,25780.0,25779.0,0.058748]
[1694101238613,2.28162092,25780.0,25779.0,0.058748]
[1694101238833,2.28108092,25780.0,25779.0,0.058748]
[1694101239043,1.50504592,25780.0,25779.0,0.058748]
[1694101239265,2.68850092,25780.0,25779.0,0.058748]
[1694101239540,0.73273092,25780.0,25779.0,0.058748]
[1694101239807,0.73171092,25780.0,25779.0,0.058748]
[1694101240061,0.73143092,25780.0,25779.0,0.082748]
[1694101240311,1.50528592,25780.0,25779.0,0.058748]
[1694101240527,0.72997092,25780.0,25779.0,0.058748]
[1694101240755,0.72729092,25780.0,25779.0,0.043998]
[1694101240981,0.72735092,25780.0,25779.0,0.043998]
[1694101241214,0.73277092,25780.0,25779.0,0.067998]
[1694101241693,0.72911092,25780.0,25779.0,0.067998]
[1694101241921,0.72863092,25780.0,25779.0,0.067998]
[1694101242162,0.72259092,25780.0,25779.0,0.019998]
[1694101242405,0.72139092,25780.0,25779.0,0.019998]
[1694101242644,0.72645092,25780.0,25779.0,0.043998]
[1694101242855,0.72849092,25780.0,25779.0,0.043998]
[1694101243072,0.72525092,25780.0,25779.0,0.043998]
[1694101243336,0.72303092,25780.0,25779.0,0.043998]
[1694101243580,0.72611092,25780.0,25779.0,0.068998]